fUSD/lending_fUSD_20250629
["ID","MTS","AMOUNT","RATE_DAILY","PERIOD"]
[368557781,1751206265406,-490.0,0.00024657,2]
[368557782,1751206265416,-1070.29,0.00024657,2]
[368557783,1751206265425,-490.0,0.00024657,2]
[368557784,1751206265434,-1570.56,0.00024657,2]
[368557785,1751206265444,-490.0,0.00024657,2]
[368557786,1751206265453,-455.58492115,0.00024657,2]
[368557787,1751206265463,-490.0,0.00024657,2]
[368557788,1751206265474,-1818.19,0.00024657,2]
[368557789,1751206265483,-531.64,0.00024657,2]
[368557790,1751206265493,-490.0,0.00024657,2]
[368557791,1751206265503,-635.95,0.00024657,2]
[368557792,1751206265513,-222.01858147,0.00024657,2]
[368557793,1751206265522,-227.117832,0.00024657,2]
[368557794,1751206265532,-348.17698993,0.00024657,2]
[368557795,1751206265542,-490.0,0.00024657,2]
[368557796,1751206265551,-490.0,0.00024657,2]
[368557797,1751206265561,-1058.85,0.00024657,2]
[368557798,1751206265570,-490.0,0.00024657,2]
[368557799,1751206265580,-1279.5,0.00024657,2]
[368557800,1751206265589,-1352.44,0.00024657,2]
[368557801,1751206265599,-579.4,0.00024657,2]
[368557802,1751206265608,-490.0,0.00024657,2]
[368557803,1751206265618,-1030.59,0.00024657,2]
[368557804,1751206265628,-1340.02,0.00024657,2]
[368557805,1751206265637,-616.11,0.00024657,2]
[368557806,1751206265647,-490.0,0.00024657,2]
[368557807,1751206265656,-851.39,0.00024657,2]
[368557808,1751206265666,-490.0,0.00024657,2]
[368557809,1751206265676,-490.0,0.00024657,2]
[368557810,1751206265685,-490.0,0.00024657,2]
[368557811,1751206265695,-1685.61,0.00024657,2]
[368557812,1751206265704,-490.0,0.00024657,2]
[368557813,1751206265714,-491.9790884,0.00024657,2]
[368557814,1751206265724,-490.0,0.00024657,2]
[368557815,1751206265734,-2556.45,0.00024657,2]
[368557816,1751206265743,-490.0,0.00024657,2]
[368557817,1751206265753,-1064.21,0.00024657,2]
[368557818,1751206265763,-297.2542423,0.00024657,2]
[368557819,1751206265772,-2994.03,0.00024657,2]
[368557820,1751206265782,-687.55,0.00024657,2]
[368557821,1751206265791,-1585.17,0.00024657,2]
[368557822,1751206265801,-957.78,0.00024657,2]
[368557823,1751206265811,-490.0,0.00024657,2]
[368557824,1751206265821,-490.0,0.00024657,2]
[368557825,1751206265831,-536.79,0.00024657,2]
[368557826,1751206265841,-490.0,0.00024657,2]
[368557827,1751206265850,-1099.2,0.00024657,2]
[368557828,1751206265860,-592.45,0.00024657,2]
[368557829,1751206265871,-490.0,0.00024657,2]
[368557830,1751206265880,-1892.89,0.00024657,2]
[368557831,1751206265890,-490.0,0.00024657,2]
[368557832,1751206265900,-490.0,0.00024657,2]
[368557833,1751206265909,-490.0,0.00024657,2]
[368557834,1751206265919,-490.0,0.00024657,2]
[368557835,1751206265928,-490.0,0.00024657,2]
[368557836,1751206265938,-724.33,0.00024657,2]
[368557837,1751206265948,-636.72,0.00024657,2]
[368557838,1751206265957,-490.0,0.00024657,2]
[368557839,1751206265966,-3079.94,0.00024657,2]
[368557840,1751206265976,-490.0,0.00024657,2]
[368557841,1751206265985,-490.0,0.00024657,2]
[368557842,1751206265995,-1190.88,0.00024657,2]
[368557843,1751206266004,-490.0,0.00024657,2]
[368557844,1751206266014,-490.0,0.00024657,2]
[368557845,1751206266023,-1468.32,0.00024657,2]
[368557846,1751206266032,-490.0,0.00024657,2]
[368557847,1751206266042,-490.0,0.00024657,2]
[368557848,1751206266050,-496.95745572,0.00024657,2]
[368557849,1751206266060,-2555.5,0.00024657,2]
[368557850,1751206266068,-490.0,0.00024657,2]
[368557851,1751206266078,-685.61,0.00024657,2]
[368557852,1751206266087,-656.42,0.00024657,2]
[368557853,1751206266096,-490.0,0.00024657,2]
[368557854,1751206266106,-1517.86,0.00024657,2]
[368557855,1751206266114,-490.0,0.00024657,2]
[368557856,1751206266125,-490.0,0.00024657,2]
[368557857,1751206266134,-553.24,0.00024657,2]
[368557858,1751206266144,-490.0,0.00024657,2]
[368557859,1751206266153,-490.0,0.00024657,2]
[368557860,1751206266162,-490.0,0.00024657,2]
[368557861,1751206266172,-522.99,0.00024657,2]
[368557862,1751206266181,-490.0,0.00024657,2]
[368557863,1751206266190,-943.52,0.00024657,2]
[368557864,1751206266200,-490.0,0.00024657,2]
[368557865,1751206266209,-1217.79,0.00024657,2]
[368557866,1751206266218,-548.91820789,0.00024657,2]
[368557867,1751206266228,-490.0,0.00024657,2]
[368557868,1751206266237,-902.25,0.00024657,2]
[368557869,1751206266246,-568.77,0.00024657,2]
[368557870,1751206266256,-1170.12,0.00024657,2]
[368557871,1751206266265,-490.0,0.00024657,2]
[368557872,1751206266274,-980.79,0.00024657,2]
[368557873,1751206266284,-490.0,0.00024657,2]
[368557874,1751206266293,-1902.37,0.00024657,2]
[368557875,1751206266305,-490.0,0.00024657,2]
[368557876,1751206266315,-490.0,0.00024657,2]
[368557877,1751206266324,-500.0,0.00024657,2]
[368557878,1751206266333,-500.0,0.00024657,2]
[368557879,1751206266343,-500.0,0.00024657,2]
[368557880,1751206266352,-655.45,0.00024657,2]
[368557881,1751206266361,-516.28814848,0.00024657,2]
[368557882,1751206266370,-1001.58,0.00024657,2]
[368557883,1751206266379,-490.0,0.00024657,2]
[368557884,1751206266390,-1423.88,0.00024657,2]
[368557885,1751206266399,-1172.83,0.00024657,2]
[368557886,1751206266408,-490.0,0.00024657,2]
[368557887,1751206266418,-495.67,0.00024657,2]
[368557888,1751206266427,-2448.12,0.00024657,2]
[368557889,1751206266436,-916.52,0.00024657,2]
[368557890,1751206266445,-1057.91,0.00024657,2]
[368557891,1751206266455,-490.0,0.00024657,2]
[368557892,1751206266464,-542.41,0.00024657,2]
[368557893,1751206266474,-490.0,0.00024657,2]
[368557894,1751206266485,-490.93175418,0.00024657,2]
[368557895,1751206266495,-1730.79,0.00024657,2]
[368557896,1751206266504,-490.0,0.00024657,2]
[368557897,1751206266514,-490.0,0.00024657,2]
[368557898,1751206266523,-1551.01,0.00024657,2]
[368557899,1751206266533,-2816.62,0.00024657,2]
[368557900,1751206266543,-490.0,0.00024657,2]
[368557901,1751206266553,-2851.99,0.00024657,2]
[368557902,1751206266562,-610.31,0.00024657,2]
[368557903,1751206266572,-490.0,0.00024657,2]
[368557904,1751206266581,-490.0,0.00024657,2]
[368557905,1751206266591,-490.0,0.00024657,2]
[368557906,1751206266600,-490.0,0.00024657,2]
[368557907,1751206266610,-490.0,0.00024657,2]
[368557908,1751206266619,-490.0,0.00024657,2]
[368557909,1751206266629,-490.0,0.00024657,2]
[368557910,1751206266640,-1054.8,0.00024657,2]
[368557911,1751206266650,-2654.29,0.00024657,2]
[368557912,1751206266660,-490.0,0.00024657,2]
[368557913,1751206266670,-496.92,0.00024657,2]
[368557914,1751206266679,-603.41,0.00024657,2]
[368557915,1751206266689,-1588.13,0.00024657,2]
[368557916,1751206266698,-490.0,0.00024657,2]
[368557917,1751206266707,-1696.96,0.00024657,2]
[368557918,1751206266717,-490.0,0.00024657,2]
[368557919,1751206266726,-490.0,0.00024657,2]
[368557920,1751206266736,-490.0,0.00024657,2]
[368557921,1751206266746,-490.0,0.00024657,2]
[368557922,1751206266755,-191.89491843,0.00024657,2]
[368557923,1751206266765,-1094.09,0.00024657,2]
[368557924,1751206266774,-490.0,0.00024657,2]
[368557925,1751206266783,-490.0,0.00024657,2]
[368557926,1751206266792,-490.0,0.00024657,2]
[368557927,1751206266802,-490.0,0.00024657,2]
[368557928,1751206266811,-490.0,0.00024657,2]
[368557929,1751206266821,-490.0,0.00024657,2]
[368557930,1751206266830,-490.0,0.00024657,2]
[368557931,1751206266840,-490.0,0.00024657,2]
[368557932,1751206266849,-605.76,0.00024657,2]
[368557933,1751206266858,-490.0,0.00024657,2]
[368557934,1751206266868,-490.0,0.00024657,2]
[368557935,1751206266877,-1186.27,0.00024657,2]
[368557936,1751206266887,-490.0,0.00024657,2]
[368557937,1751206266896,-490.0,0.00024657,2]
[368557938,1751206266906,-871.48,0.00024657,2]
[368557939,1751206266915,-1553.29,0.00024657,2]
[368557940,1751206266924,-490.0,0.00024657,2]
[368557941,1751206266933,-490.0,0.00024657,2]
[368557942,1751206266943,-490.0,0.00024657,2]
[368557943,1751206266952,-490.0,0.00024657,2]
[368557944,1751206266961,-490.0,0.00024657,2]
[368557945,1751206266972,-490.0,0.00024657,2]
[368557946,1751206266981,-1035.6,0.00024657,2]
[368557947,1751206266991,-490.0,0.00024657,2]
[368557948,1751206267001,-1138.98,0.00024657,2]
[368557949,1751206267010,-631.68,0.00024657,2]
[368557950,1751206267019,-1573.36,0.00024657,2]
[368557951,1751206267028,-490.0,0.00024657,2]
[368557952,1751206267038,-490.0,0.00024657,2]
[368557953,1751206267047,-490.0,0.00024657,2]
[368557954,1751206267056,-490.0,0.00024657,2]
[368557955,1751206267066,-1359.58,0.00024657,2]
[368557956,1751206267075,-1103.55,0.00024657,2]
[368557957,1751206267084,-1306.04,0.00024657,2]
[368557958,1751206267093,-424.11994709,0.00024657,2]
[368557959,1751206267151,-490.0,0.00024657,2]
[368557960,1751206267161,-825.99,0.00024657,2]
[368557961,1751206267170,-490.0,0.00024657,2]
[368557962,1751206267179,-490.0,0.00024657,2]
[368557963,1751206267188,-2384.31,0.00024657,2]
[368557964,1751206267197,-490.0,0.00024657,2]
[368557965,1751206267206,-490.0,0.00024657,2]
[368557966,1751206267216,-490.0,0.00024657,2]
[368557967,1751206267225,-945.61,0.00024657,2]
[368557968,1751206267234,-490.0,0.00024657,2]
[368557969,1751206267244,-490.0,0.00024657,2]
[368557970,1751206267253,-1142.1,0.00024657,2]
[368557971,1751206267262,-490.0,0.00024657,2]
[368557972,1751206267271,-490.0,0.00024657,2]
[368557973,1751206267280,-490.0,0.00024657,2]
[368557974,1751206267290,-493.0,0.00024657,2]
[368557975,1751206267299,-490.0,0.00024657,2]
[368557976,1751206267311,-490.0,0.00024657,2]
[368557977,1751206267320,-490.0,0.00024657,2]
[368557978,1751206267329,-490.0,0.00024657,2]
[368557979,1751206267339,-490.0,0.00024657,2]
[368557980,1751206267349,-898.22,0.00024657,2]
[368557981,1751206267358,-532.66,0.00024657,2]
[368557982,1751206267367,-1840.89,0.00024657,2]
[368557983,1751206267376,-577.19,0.00024657,2]
[368557984,1751206267387,-615.52,0.00024657,2]
[368557985,1751206267397,-490.0,0.00024657,2]
[368557986,1751206267406,-490.0,0.00024657,2]
[368557987,1751206267415,-490.0,0.00024657,2]
[368557988,1751206267424,-490.0,0.00024657,2]
[368557989,1751206267434,-490.0,0.00024657,2]
[368557990,1751206267443,-490.0,0.00024657,2]
[368557991,1751206267452,-1803.31,0.00024657,2]
[368557992,1751206267461,-490.0,0.00024657,2]
[368557993,1751206267471,-1918.41,0.00024657,2]
[368557994,1751206267480,-490.0,0.00024657,2]
[368557995,1751206267489,-3089.38,0.00024657,2]
[368557996,1751206267499,-490.0,0.00024657,2]
[368557997,1751206267508,-490.0,0.00024657,2]
[368557998,1751206267517,-490.0,0.00024657,2]
[368557999,1751206267526,-496.47953714,0.00024657,2]
[368558000,1751206267535,-490.0,0.00024657,2]
[368558001,1751206267545,-533.71,0.00024657,2]
[368558002,1751206267554,-490.0,0.00024657,2]
[368558003,1751206267564,-490.0,0.00024657,2]
[368558004,1751206267573,-490.0,0.00024657,2]
[368558005,1751206267583,-490.0,0.00024657,2]
[368558006,1751206267592,-490.0,0.00024657,2]
[368558007,1751206267601,-490.0,0.00024657,2]
[368558008,1751206267611,-822.17,0.00024657,2]
[368558009,1751206267620,-490.0,0.00024657,2]
[368558010,1751206267629,-490.0,0.00024657,2]
[368558011,1751206267639,-490.0,0.00024657,2]
[368558012,1751206267649,-490.0,0.00024657,2]
[368558013,1751206267658,-974.47,0.00024657,2]
[368558014,1751206267667,-490.0,0.00024657,2]
[368558015,1751206267677,-1368.25,0.00024657,2]
[368558016,1751206267686,-490.0,0.00024657,2]
[368558017,1751206267695,-510.41,0.00024657,2]
[368558018,1751206267705,-490.0,0.00024657,2]
[368558019,1751206267714,-490.0,0.00024657,2]
[368558020,1751206267723,-490.0,0.00024657,2]
[368558021,1751206267733,-927.46,0.00024657,2]
[368558022,1751206267743,-490.0,0.00024657,2]
[368558023,1751206267753,-490.0,0.00024657,2]
[368558024,1751206267762,-666.79,0.00024657,2]
[368558025,1751206267771,-490.0,0.00024657,2]
[368558026,1751206267780,-501.89,0.00024657,2]
[368558027,1751206267789,-490.0,0.00024657,2]
[368558028,1751206267799,-1350.97,0.00024657,2]
[368558029,1751206267808,-2203.3,0.00024657,2]
[368558030,1751206267817,-490.0,0.00024657,2]
[368558031,1751206267826,-490.0,0.00024657,2]
[368558032,1751206267835,-573.88,0.00024657,2]
[368558033,1751206267845,-901.86,0.00024657,2]
[368558034,1751206267854,-1967.59,0.00024657,2]
[368558035,1751206267863,-490.0,0.00024657,2]
[368558036,1751206267872,-1034.56,0.00024657,2]
[368558037,1751206267881,-496.58996295,0.00024657,2]
[368558038,1751206267891,-490.0,0.00024657,2]
[368558039,1751206267900,-490.0,0.00024657,2]
[368558040,1751206267909,-490.0,0.00024657,2]
[368558041,1751206267919,-490.0,0.00024657,2]
[368558042,1751206267929,-490.0,0.00024657,2]
[368558043,1751206267938,-490.0,0.00024657,2]
[368558044,1751206267948,-1091.69,0.00024657,2]
[368558045,1751206267957,-490.0,0.00024657,2]
[368558046,1751206267966,-490.0,0.00024657,2]
[368558047,1751206267975,-501.38555236,0.00024657,2]
[368558048,1751206267985,-629.54425815,0.00024657,2]
[368558049,1751206267994,-500.0,0.00024657,2]
[368558050,1751206268004,-500.0,0.00024657,2]
[368558051,1751206268013,-490.0,0.00024657,2]
[368558052,1751206268022,-616.28,0.00024657,2]
[368558053,1751206268031,-490.0,0.00024657,2]
[368558054,1751206268041,-873.59,0.00024657,2]
[368558055,1751206268051,-522.1001005,0.00024657,2]
[368558056,1751206268060,-1940.96,0.00024657,2]
[368558057,1751206268070,-1336.56,0.00024657,2]
[368558058,1751206268080,-490.0,0.00024657,2]
[368558059,1751206268090,-490.0,0.00024657,2]
[368558060,1751206268099,-490.0,0.00024657,2]
[368558061,1751206268109,-490.0,0.00024657,2]
[368558062,1751206268118,-1082.27,0.00024657,2]
[368558063,1751206268127,-639.55,0.00024657,2]
[368558064,1751206268137,-490.0,0.00024657,2]
[368558065,1751206268146,-490.0,0.00024657,2]
[368558066,1751206268155,-490.0,0.00024657,2]
[368558067,1751206268164,-490.0,0.00024657,2]
[368558068,1751206268173,-490.0,0.00024657,2]
[368558069,1751206268182,-490.0,0.00024657,2]
[368558070,1751206268191,-490.0,0.00024657,2]
[368558071,1751206268201,-490.0,0.00024657,2]
[368558072,1751206268212,-2220.61,0.00024657,2]
[368558073,1751206268222,-1216.45,0.00024657,2]
[368558074,1751206268232,-490.0,0.00024657,2]
[368558075,1751206268242,-1226.87,0.00024657,2]
[368558076,1751206268251,-490.0,0.00024657,2]
[368558077,1751206268260,-490.0,0.00024657,2]
[368558078,1751206268270,-490.0,0.00024657,2]
[368558079,1751206268281,-490.0,0.00024657,2]
[368558080,1751206268290,-761.66,0.00024657,2]
[368558081,1751206268303,-372.70381971,0.00024657,2]
[368558082,1751206268313,-490.0,0.00024657,2]
[368558083,1751206268323,-490.0,0.00024657,2]
[368558084,1751206268332,-490.0,0.00024657,2]
[368558085,1751206268341,-490.0,0.00024657,2]
[368558086,1751206268352,-1296.76,0.00024657,2]
[368558087,1751206268361,-1477.35,0.00024657,2]
[368558088,1751206268370,-490.0,0.00024657,2]
[368558089,1751206268379,-492.42,0.00024657,2]
[368558090,1751206268389,-925.05,0.00024657,2]
[368558091,1751206268398,-1981.04,0.00024657,2]
[368558092,1751206268407,-1301.48,0.00024657,2]
[368558093,1751206268416,-490.0,0.00024657,2]
[368558094,1751206268425,-1704.38,0.00024657,2]
[368558095,1751206268434,-490.0,0.00024657,2]
[368558096,1751206268443,-490.0,0.00024657,2]
[368558097,1751206268452,-595.99,0.00024657,2]
[368558098,1751206268461,-2278.51,0.00024657,2]
[368558099,1751206268470,-490.0,0.00024657,2]
[368558100,1751206268480,-525.24,0.00024657,2]
[368558101,1751206268489,-490.0,0.00024657,2]
[368558102,1751206268499,-1021.53,0.00024657,2]
[368558103,1751206268508,-1075.78,0.00024657,2]
[368558104,1751206268517,-910.92,0.00024657,2]
[368558105,1751206268527,-1346.37,0.00024657,2]
[368558106,1751206268536,-490.0,0.00024657,2]
[368558107,1751206268546,-490.0,0.00024657,2]
[368558108,1751206268556,-513.22488083,0.00024657,2]
[368558109,1751206268565,-490.0,0.00024657,2]
[368558110,1751206268575,-490.0,0.00024657,2]
[368558111,1751206268584,-390.41473203,0.00024657,2]
[368558112,1751206268594,-490.0,0.00024657,2]
[368558113,1751206268604,-624.0,0.00024657,2]
[368558114,1751206268613,-490.0,0.00024657,2]
[368558115,1751206268623,-1045.74,0.00024657,2]
[368558116,1751206268634,-1611.31,0.00024657,2]
[368558117,1751206268643,-661.76,0.00024657,2]
[368558118,1751206268652,-490.0,0.00024657,2]
[368558119,1751206268663,-490.0,0.00024657,2]
[368558120,1751206268672,-490.0,0.00024657,2]
[368558121,1751206268682,-490.0,0.00024657,2]
[368558122,1751206268691,-490.0,0.00024657,2]
[368558123,1751206268700,-490.0,0.00024657,2]
[368558124,1751206268710,-1123.2,0.00024657,2]
[368558125,1751206268719,-490.0,0.00024657,2]
[368558126,1751206268728,-490.0,0.00024657,2]
[368558127,1751206268737,-1931.97,0.00024657,2]
[368558128,1751206268746,-490.0,0.00024657,2]
[368558129,1751206268756,-3083.18,0.00024657,2]
[368558130,1751206268765,-490.0,0.00024657,2]
[368558131,1751206268774,-4025.78,0.00024657,2]
[368558132,1751206268784,-490.0,0.00024657,2]
[368558133,1751206268794,-490.0,0.00024657,2]
[368558134,1751206268803,-490.0,0.00024657,2]
[368558135,1751206268812,-770.23,0.00024657,2]
[368558136,1751206268821,-1174.53,0.00024657,2]
[368558137,1751206268830,-490.0,0.00024657,2]
[368558138,1751206268840,-490.0,0.00024657,2]
[368558139,1751206268850,-3236.6,0.00024657,2]
[368558140,1751206268859,-490.0,0.00024657,2]
[368558141,1751206268868,-1093.36,0.00024657,2]
[368558142,1751206268877,-490.0,0.00024657,2]
[368558143,1751206268887,-490.0,0.00024657,2]
[368558144,1751206268896,-490.0,0.00024657,2]
[368558145,1751206268906,-3685.99,0.00024657,2]
[368558146,1751206268915,-490.0,0.00024657,2]
[368558147,1751206268925,-1881.06,0.00024657,2]
[368558148,1751206268934,-490.0,0.00024657,2]
[368558149,1751206268943,-2719.51,0.00024657,2]
[368558150,1751206268953,-490.0,0.00024657,2]
[368558151,1751206268962,-490.0,0.00024657,2]
[368558152,1751206268971,-490.0,0.00024657,2]
[368558153,1751206268980,-175075.04,0.00024657,2]
[368558154,1751206268990,-710.12,0.00024657,2]
[368558155,1751206268999,-490.0,0.00024657,2]
[368558156,1751206269008,-493.33,0.00024657,2]
[368558157,1751206269017,-490.0,0.00024657,2]
[368558158,1751206269026,-490.0,0.00024657,2]
[368558159,1751206269035,-916.05,0.00024657,2]
[368558160,1751206269045,-533.34,0.00024657,2]
[368558161,1751206269055,-1912.75,0.00024657,2]
[368558162,1751206269065,-490.0,0.00024657,2]
[368558163,1751206269074,-5112.87,0.00024657,2]
[368558164,1751206269083,-490.0,0.00024657,2]
[368558165,1751206269092,-711.47,0.00024657,2]
[368558166,1751206269101,-490.0,0.00024657,2]
[368558167,1751206269110,-1428.41,0.00024657,2]
[368558168,1751206269119,-490.0,0.00024657,2]
[368558169,1751206269129,-950.33,0.00024657,2]
[368558170,1751206269138,-773.6,0.00024657,2]
[368558171,1751206269148,-151.0,0.00024657,7]
[368558172,1751206269158,-2903.78,0.00024657,2]
[368558173,1751206269167,-1331.39,0.00024657,2]
[368558174,1751206269176,-871.45,0.00024657,2]
[368558175,1751206269185,-2427.99,0.00024657,2]
[368558176,1751206269195,-2426.46,0.00024657,2]
[368558177,1751206269204,-3397.6,0.00024657,2]
[368558178,1751206269214,-4538.1,0.00024657,2]
[368558179,1751206269223,-490.0,0.00024657,2]
[368558180,1751206269232,-549.74,0.00024657,2]
[368558181,1751206269241,-490.0,0.00024657,2]
[368558182,1751206269250,-4832.93,0.00024657,2]
[368558183,1751206269260,-490.0,0.00024657,2]
[368558184,1751206269269,-490.0,0.00024657,2]
[368558185,1751206269278,-548.16,0.00024657,2]
[368558186,1751206269287,-1832.35,0.00024657,2]
[368558187,1751206269297,-490.0,0.00024657,2]
[368558188,1751206269311,-490.0,0.00024657,2]
[368558189,1751206269320,-490.0,0.00024657,2]
[368558190,1751206269329,-1652.47,0.00024657,2]
[368558191,1751206269338,-523.7,0.00024657,2]
[368558192,1751206269347,-490.0,0.00024657,2]
[368558193,1751206269356,-7673.11,0.00024657,2]
[368558194,1751206269365,-490.0,0.00024657,2]
[368558195,1751206269375,-490.0,0.00024657,2]
[368558196,1751206269386,-490.0,0.00024657,2]
[368558197,1751206269395,-1435.42,0.00024657,2]
[368558198,1751206269405,-1774.82,0.00024657,2]
[368558199,1751206269414,-607.52,0.00024657,2]
[368558200,1751206269423,-490.0,0.00024657,2]
[368558201,1751206269432,-490.0,0.00024657,2]
[368558202,1751206269441,-2031.28,0.00024657,2]
[368558203,1751206269451,-490.0,0.00024657,2]
[368558204,1751206269460,-542.15,0.00024657,2]
[368558205,1751206269469,-542.15,0.00024657,2]
[368558206,1751206269478,-542.15,0.00024657,2]
[368558207,1751206269487,-490.0,0.00024657,2]
[368558208,1751206269497,-542.15,0.00024657,2]
[368558209,1751206269507,-542.15,0.00024657,2]
[368558210,1751206269516,-542.15,0.00024657,2]
[368558211,1751206269525,-490.0,0.00024657,2]
[368558212,1751206269535,-2930.37,0.00024657,2]
[368558213,1751206269544,-3680.86,0.00024657,2]
[368558214,1751206269553,-490.0,0.00024657,2]
[368558215,1751206269563,-490.0,0.00024657,2]
[368558216,1751206269572,-490.0,0.00024657,2]
[368558217,1751206269583,-490.0,0.00024657,2]
[368558218,1751206269592,-1017.38,0.00024657,2]
[368558219,1751206269601,-490.0,0.00024657,2]
[368558220,1751206269611,-566.0,0.00024657,2]
[368558221,1751206269620,-490.0,0.00024657,2]
[368558222,1751206269630,-1011.86,0.00024657,2]
[368558223,1751206269640,-7549.89,0.00024657,2]
[368558224,1751206269649,-490.0,0.00024657,2]
[368558225,1751206269660,-490.0,0.00024657,2]
[368558226,1751206269669,-842.73,0.00024657,2]
[368558227,1751206269678,-490.0,0.00024657,2]
[368558228,1751206269688,-490.0,0.00024657,2]
[368558229,1751206269698,-2086.3,0.00024657,2]
[368558230,1751206269708,-1835.11,0.00024657,2]
[368558231,1751206269718,-9300.6,0.00024657,2]
[368558232,1751206269727,-490.0,0.00024657,2]
[368558233,1751206269737,-10660.62,0.00024657,2]
[368558234,1751206269746,-1703.39,0.00024657,2]
[368558235,1751206269756,-1387.33,0.00024657,2]
[368558236,1751206269765,-490.0,0.00024657,2]
[368558237,1751206269775,-670.46,0.00024657,2]
[368558238,1751206269784,-490.0,0.00024657,2]
[368558239,1751206269793,-490.0,0.00024657,2]
[368558240,1751206269803,-490.0,0.00024657,2]
[368558241,1751206269814,-490.0,0.00024657,2]
[368558242,1751206269823,-490.0,0.00024657,2]
[368558243,1751206269832,-2699.94,0.00024657,2]
[368558244,1751206269842,-512.01,0.00024657,2]
[368558245,1751206269851,-490.0,0.00024657,2]
[368558246,1751206269860,-2788.63,0.00024657,2]
[368558247,1751206269869,-500.0,0.00024657,2]
[368558248,1751206269879,-1031.16,0.00024657,2]
[368558249,1751206269889,-491.74018641,0.00024657,2]
[368558250,1751206269898,-500.0,0.00024657,2]
[368558251,1751206269907,-490.0,0.00024657,2]
[368558252,1751206269918,-490.0,0.00024657,2]
[368558253,1751206269928,-490.0,0.00024657,2]
[368558254,1751206269938,-928.97,0.00024657,2]
[368558255,1751206269947,-490.0,0.00024657,2]
[368558256,1751206269956,-490.0,0.00024657,2]
[368558257,1751206269965,-1276.02,0.00024657,2]
[368558258,1751206269975,-480.00538066,0.00024657,2]
[368558259,1751206269985,-817.97,0.00024657,2]
[368558260,1751206269995,-490.0,0.00024657,2]
[368558261,1751206270005,-490.0,0.00024657,2]
[368558262,1751206270014,-3557.06,0.00024657,2]
[368558263,1751206270023,-1091.69,0.00024657,2]
[368558264,1751206270032,-490.0,0.00024657,2]
[368558265,1751206270041,-10331.65,0.00024657,2]
[368558266,1751206270051,-2201.08,0.00024657,2]
[368558267,1751206270060,-2341.61,0.00024657,2]
[368558268,1751206270069,-508.05739887,0.00024657,2]
[368558269,1751206270078,-490.0,0.00024657,2]
[368558270,1751206270088,-939.95,0.00024657,2]
[368558271,1751206270097,-1680.69,0.00024657,2]
[368558272,1751206270106,-490.0,0.00024657,2]
[368558273,1751206270115,-490.0,0.00024657,2]
[368558274,1751206270125,-11155.52,0.00024657,2]
[368558275,1751206270134,-219.18491454,0.00024657,2]
[368558276,1751206270143,-2228.86,0.00024657,2]
[368558277,1751206270153,-677.71,0.00024657,2]
[368558278,1751206270162,-2475.18,0.00024657,2]
[368558279,1751206270172,-490.0,0.00024657,2]
[368558280,1751206270181,-1904.9,0.00024657,2]